bitfinex-derivatives/quotes_ETHF0:USTF0_20250209
["timestamp","ask_amount","ask_price","bid_price","bid_amount"]
[1739079926004,4.00638011,2666.3,2665.8,0.8989434]
[1739079926195,4.00638011,2666.3,2665.8,1.4615434]
[1739079926598,4.00638011,2666.3,2665.8,0.56822915]
[1739079928705,4.00638011,2666.3,2665.8,0.00562915]
[1739079928706,3.2078,2666.1,2665.8,0.00562915]
[1739079928897,1.7495,2666.0,2665.8,0.00562915]
[1739079929103,5.88842981,2666.0,2665.8,0.00562915]
[1739079930907,8.6307932,2666.0,2665.8,0.00562915]
[1739079931609,13.8807132,2666.0,2665.8,0.00562915]
[1739079931812,13.8807132,2666.0,2665.3,3.2078]
[1739079932009,1.99228339,2665.7,2665.3,3.2078]
[1739079932209,0.5792,2665.6,2665.3,3.2078]
[1739079932508,1.1434,2665.5,2665.3,3.2078]
[1739079932711,1.1434,2665.5,2665.0,1.99228339]
[1739079932906,4.2189041,2665.4,2665.1,0.00562915]
[1739079935108,4.2189041,2665.4,2665.1,0.60752915]
[1739079939112,4.2189041,2665.4,2665.1,0.00562915]
[1739079947618,3.2078,2665.2,2664.4,5.50548339]
[1739079947820,3.2078,2665.2,2664.5,0.5502]
[1739079948121,4.51137832,2665.1,2664.5,0.5502]
[1739079948321,0.5566,2665.0,2664.5,0.5502]
[1739079948820,3.95847832,2664.9,2664.5,0.55582915]
[1739079950620,0.5529,2665.1,2664.7,1.99228339]
[1739079950817,1.103,2665.1,2664.8,0.5872]
[1739079951016,4.19710863,2665.0,2664.8,0.5872]
[1739079951216,4.19710863,2665.0,2664.9,0.5838]
[1739079953219,3.19710863,2665.0,2664.9,0.5838]
[1739079960622,3.19710863,2665.0,2664.9,1.47599545]
[1739079963825,3.2078,2665.6,2664.9,4.68379545]
[1739079964032,3.2078,2665.6,2665.5,0.89219545]
[1739079964825,3.2078,2665.6,2665.3,3.14332709]
[1739079965131,7.42050792,2665.6,2665.3,3.14332709]
[1739079966430,7.42050792,2665.6,2665.1,2.917]
[1739079967630,7.42050792,2665.6,2665.2,0.5794]
[1739079968326,7.42050792,2665.6,2665.3,1.99262709]
[1739079968526,7.42050792,2665.6,2665.3,2.58482709]
[1739079969120,4.21270792,2665.6,2665.3,2.58482709]
[1739079970331,4.21270792,2665.6,2665.5,3.2078]
[1739079970639,0.00562915,2665.7,2665.5,3.2078]
[1739079970823,0.00562915,2665.7,2665.6,2.57142709]
[1739079974432,0.00562915,2665.7,2665.6,3.13212709]
[1739079975534,0.00562915,2665.7,2665.6,2.57142709]
[1739079978032,0.00562915,2665.7,2665.6,3.12462709]
[1739079979234,0.00562915,2665.7,2665.6,2.57142709]
[1739079979940,0.00562915,2665.7,2665.6,1.99262709]
[1739079984341,3.93803557,2665.7,2665.6,1.99262709]
[1739079984938,3.93803557,2665.7,2665.5,3.2078]
[1739079985252,1.144,2665.6,2665.5,3.2078]
[1739079985446,1.6922,2665.6,2665.5,3.2078]
[1739079985638,5.98084484,2665.6,2665.5,3.2078]
[1739079991450,5.98084484,2665.6,2665.3,1.99262709]
[1739079991644,5.98084484,2665.6,2665.5,3.2078]
[1739079991950,4.28864484,2665.6,2665.5,3.2078]
[1739079992245,0.00562915,2665.7,2665.5,3.2078]
[1739079992547,3.98594084,2665.6,2665.5,3.2078]
[1739079993842,0.00562915,2665.7,2665.5,3.2078]
[1739079994248,0.00562915,2665.7,2665.6,0.5706]
[1739079994451,0.00562915,2665.7,2665.6,1.1739]
[1739079995243,0.00562915,2665.7,2665.6,0.5706]
[1739079995549,4.28040362,2665.7,2665.6,0.5706]
[1739079996344,4.28040362,2665.7,2665.5,3.2078]
[1739079996648,0.5772,2665.6,2665.5,3.2078]
[1739079999949,4.28040362,2665.7,2665.5,3.2078]
[1739080000540,4.28040362,2665.7,2665.6,1.99262709]
[1739080000743,0.00562915,2665.7,2665.6,2.55342709]
[1739080002846,0.00562915,2665.7,2665.5,3.2078]
[1739080004952,4.06232562,2665.6,2665.5,3.2078]
[1739080005154,5.23552562,2665.6,2665.5,3.2078]
[1739080006152,0.5822,2665.6,2665.5,3.2078]
[1739080006455,0.00562915,2665.7,2665.5,3.7951]
[1739080009456,0.00562915,2665.7,2665.6,1.99262709]
[1739080010456,0.00562915,2665.7,2665.5,3.2078]
[1739080023656,0.00562915,2665.7,2665.6,1.99262709]
[1739080024761,0.00562915,2665.7,2665.5,3.2078]
[1739080027565,0.00562915,2665.7,2665.4,1.1201]
[1739080027765,0.00562915,2665.7,2665.6,3.2078]
[1739080029766,0.00562915,2665.7,2665.6,4.09954155]
[1739080042676,0.00562915,2665.7,2665.6,10.33254155]
[1739080043177,0.5606,2666.2,2665.6,14.8914531]
[1739080043476,0.5606,2666.2,2666.1,0.89174155]
[1739080043874,0.5606,2666.2,2666.1,1.46244155]
[1739080044075,0.5606,2666.2,2666.1,0.5707]
[1739080044773,0.5606,2666.2,2666.0,3.2078]
[1739080048172,0.55622915,2666.4,2666.1,0.89174155]
[1739080048377,0.55622915,2666.4,2666.3,0.89174155]
[1739080049174,0.55622915,2666.4,2666.2,0.5687]
[1739080049371,0.55622915,2666.4,2666.1,3.80874155]
[1739080049575,0.55622915,2666.4,2666.1,2.917]
[1739080050877,3.9543179,2666.3,2666.1,2.917]
[1739080051374,0.5758,2666.2,2666.1,2.917]
[1739080052083,0.5758,2666.2,2666.0,3.2078]
[1739080052384,0.5849,2666.1,2666.0,3.2078]
[1739080053371,0.5849,2666.1,2666.0,4.09954155]
[1739080066594,0.5758,2666.2,2666.0,4.09954155]
[1739080066993,0.5758,2666.2,2666.1,0.5885]
[1739080067994,0.5757,2666.3,2666.1,0.5885]
[1739080068394,0.6058,2666.2,2666.1,0.5885]
[1739080068594,0.6058,2666.2,2666.0,4.09954155]
[1739080069092,0.6058,2666.2,2666.0,3.2078]
[1739080069698,0.6058,2666.2,2665.9,0.00562915]
[1739080069896,4.13076837,2666.1,2665.9,0.00562915]
[1739080070099,0.5517,2666.0,2665.9,0.00562915]
[1739080072897,5.47299488,2666.0,2665.9,0.00562915]
[1739080075701,4.58125333,2666.0,2665.9,0.00562915]
[1739080078597,5.47299488,2666.0,2665.9,0.00562915]
[1739080079399,4.58125333,2666.0,2665.9,0.00562915]
[1739080083301,4.02955333,2666.0,2665.9,0.00562915]
[1739080083708,4.04589484,2666.1,2665.9,0.00562915]
[1739080083903,1.171,2666.2,2665.9,0.00562915]
[1739080084206,4.04589484,2666.1,2665.9,0.00562915]
[1739080084809,1.171,2666.2,2665.9,0.00562915]
[1739080085601,1.171,2666.2,2666.0,0.89174155]
[1739080085811,1.171,2666.2,2666.0,4.09954155]
[1739080085812,0.6058,2666.2,2666.0,4.09954155]
[1739080086107,0.5757,2666.3,2666.1,0.5898]
[1739080086309,0.5757,2666.3,2666.2,1.44384155]
[1739080087308,0.5757,2666.3,2666.1,0.5898]
[1739080087506,0.5547,2666.2,2666.1,0.5898]
[1739080089315,0.5757,2666.3,2666.1,0.5898]
[1739080089516,0.5757,2666.3,2666.2,0.89174155]
[1739080091215,0.00562915,2666.4,2666.2,0.89174155]
[1739080092509,0.00562915,2666.4,2666.1,0.5898]
[1739080097718,4.16230016,2666.3,2665.9,2.92262915]
[1739080098016,1.6792,2666.2,2665.9,2.92262915]
[1739080098412,4.30478274,2666.1,2665.9,2.92262915]
[1739080099613,4.30478274,2666.1,2665.9,0.00562915]
[1739080102420,4.09954155,2666.0,2665.9,0.00562915]
[1739080102720,4.09954155,2666.0,2665.5,3.2078]
[1739080103028,0.89174155,2665.7,2665.5,3.2078]
[1739080103318,1.1646,2665.6,2665.3,0.5572]
[1739080103524,5.26821748,2665.6,2665.2,0.89174155]
[1739080103727,0.5752,2665.5,2665.2,0.8973707]
[1739080104020,4.10361748,2665.4,2665.2,0.8973707]
[1739080104712,4.10361748,2665.4,2665.2,0.00562915]
[1739080107121,3.2078,2666.0,2665.2,3.21342915]
[1739080107323,3.2078,2666.0,2665.4,1.99343846]
[1739080107524,3.2078,2666.0,2665.5,1.1476]
[1739080107722,3.2078,2666.0,2665.5,1.7306]
[1739080108821,0.5956,2666.1,2665.6,3.2078]
[1739080109120,0.5956,2666.1,2665.9,3.2078]
[1739080109318,0.5985,2666.3,2666.0,1.1306]
[1739080109518,0.5985,2666.3,2666.0,1.7102]
[1739080113818,3.21342915,2666.4,2666.0,1.7102]
[1739080114427,0.00562915,2666.4,2666.0,3.70363846]
[1739080117735,0.00562915,2666.4,2666.2,3.2078]
[1739080118632,0.00562915,2666.4,2666.0,3.12403846]
[1739080119230,0.00562915,2666.4,2666.0,1.1306]
[1739080119942,4.12161442,2666.3,2666.0,1.1306]
[1739080120349,0.00562915,2666.4,2666.0,3.12403846]
[1739080124750,0.00562915,2666.4,2666.1,0.5752]
[1739080126854,0.00562915,2666.4,2666.1,3.783]
[1739080128347,0.00562915,2666.4,2666.1,3.2078]
[1739080128657,0.00562915,2666.4,2666.0,1.1306]
[1739080129154,0.00562915,2666.4,2666.0,0.583]
[1739080129658,0.00562915,2666.4,2666.1,3.2078]
[1739080129857,0.00562915,2666.4,2666.2,0.5799]
[1739080130855,0.00562915,2666.4,2666.1,3.2078]
[1739080131548,0.00562915,2666.4,2666.0,0.583]
[1739080132954,0.00562915,2666.4,2666.1,3.8037]
[1739080133155,0.00562915,2666.4,2666.2,0.5843]
[1739080134354,0.00562915,2666.4,2666.1,3.2078]
[1739080135053,4.22714326,2666.3,2666.1,3.2078]
[1739080135258,1.1377,2666.2,2666.1,3.2078]
[1739080137359,0.558,2666.2,2666.1,3.2078]
[1739080141052,0.558,2666.2,2666.0,0.583]
[1739080141261,0.5788,2666.1,2666.0,0.583]
[1739080141671,1.1741,2666.1,2665.8,3.7921]
[1739080141863,1.1741,2666.1,2665.8,3.8128]
[1739080143560,0.5788,2666.1,2665.9,0.5511]
[1739080143761,0.00562915,2666.4,2665.9,0.5511]
[1739080144059,0.5834,2666.3,2665.9,0.5511]
[1739080146060,0.5998,2666.2,2665.9,0.5511]
[1739080148363,0.5834,2666.3,2665.9,0.5511]
[1739080152065,0.5701,2666.2,2665.8,3.8128]
[1739080153167,0.5834,2666.3,2665.8,3.8128]
[1739080153367,0.5834,2666.3,2665.9,0.5491]
[1739080153962,0.5834,2666.3,2666.2,3.2078]
[1739080155669,0.5834,2666.3,2665.9,3.7569]
[1739080156663,0.5834,2666.3,2665.9,3.2078]
[1739080156868,0.5834,2666.3,2665.8,0.605]
[1739080156869,0.58,2666.2,2665.8,0.605]
[1739080157962,0.5834,2666.3,2665.9,3.2078]
[1739080158162,0.5834,2666.3,2665.9,3.7992]
[1739080158371,0.55292915,2666.4,2665.9,3.7992]
[1739080158570,0.00562915,2666.4,2666.2,3.2078]
[1739080158769,0.00562915,2666.4,2666.3,1.1507]
[1739080160975,0.00562915,2666.4,2666.2,3.2078]
[1739080161867,0.00562915,2666.4,2666.1,3.7659]
[1739080168773,0.00562915,2666.4,2666.0,5.46723846]
[1739080168774,4.1824439,2666.3,2666.0,2.917]
[1739080168976,1.1981,2666.2,2666.0,2.917]
[1739080169165,1.8034,2666.2,2666.0,2.917]
[1739080169775,0.00562915,2666.4,2666.1,3.2078]
[1739080169973,0.60782915,2666.4,2666.2,0.576]
[1739080170179,4.13939688,2666.3,2666.2,0.576]
[1739080171675,4.13939688,2666.3,2665.8,6.7216]
[1739080171867,0.5912,2666.2,2665.9,0.5895]
[1739080172070,0.5475,2666.1,2665.9,0.5895]
[1739080172274,0.5992,2666.0,2665.9,0.5895]
[1739080176478,0.5992,2666.0,2665.8,6.1248]
[1739080176676,0.5992,2666.0,2665.8,2.917]
[1739080176677,0.579,2665.9,2665.8,2.917]
[1739080176876,0.579,2665.9,2665.5,4.3447]
[1739080177076,4.7017596,2665.9,2665.5,4.3447]
[1739080177476,0.579,2665.9,2665.5,4.3447]
[1739080179070,0.579,2665.9,2665.5,1.1369]
[1739080179288,0.579,2665.9,2665.5,4.3447]
[1739080180181,0.579,2665.9,2665.8,3.2078]
[1739080180381,0.579,2665.9,2665.5,4.3447]
[1739080180583,0.579,2665.9,2665.8,3.2078]
[1739080180785,0.579,2665.9,2665.5,4.3447]
[1739080185978,0.579,2665.9,2665.5,3.2078]
[1739080186179,3.2078,2665.7,2665.2,3.21342915]
[1739080186380,1.1413,2665.6,2665.2,3.21342915]
[1739080186580,1.1413,2665.6,2665.2,0.00562915]
[1739080186783,4.79259491,2665.5,2665.2,0.00562915]
[1739080187383,5.54281491,2665.5,2665.2,0.00562915]
[1739080187781,4.79259491,2665.5,2665.2,0.00562915]
[1739080191684,4.79259491,2665.5,2665.4,3.2078]
[1739080191885,4.79259491,2665.5,2665.3,0.5682]
[1739080191886,0.6017,2665.5,2665.3,0.5682]
[1739080192799,0.5783,2665.6,2665.4,3.2078]
[1739080192997,1.1616,2665.9,2665.4,5.20123846]
[1739080193186,1.1616,2665.9,2665.5,0.5786]
[1739080193494,0.5826,2665.9,2665.7,3.2078]
[1739080193684,0.5826,2665.9,2665.7,5.20123846]
[1739080193885,0.5826,2665.9,2665.8,0.5682]
[1739080198192,0.579,2666.1,2665.8,0.5682]
[1739080198693,0.579,2666.1,2666.0,3.2078]
[1739080199493,0.5947,2666.3,2666.0,3.2078]
[1739080199897,4.11108463,2666.2,2666.0,3.2078]
[1739080200799,0.5903,2666.5,2666.0,5.20123846]
[1739080200992,1.1447,2666.5,2666.1,1.1161]
[1739080201299,0.5544,2666.5,2666.1,1.1161]
[1739080201601,0.5544,2666.5,2666.2,0.5704]
[1739080201793,0.5544,2666.5,2666.3,1.99343846]
[1739080206100,4.35928276,2666.4,2666.0,3.2078]
[1739080206292,5.45988276,2666.4,2666.0,3.2078]
[1739080206901,5.45988276,2666.4,2665.8,0.5845]
[1739080207595,3.2078,2666.3,2665.8,0.5845]
[1739080208100,4.10888574,2666.2,2665.8,0.5845]
[1739080208998,4.10888574,2666.2,2665.5,2.917]
[1739080210698,6.1023242,2666.2,2665.4,3.2078]
[1739080210899,6.8523342,2666.2,2665.4,3.2078]
[1739080211100,6.1023242,2666.2,2665.4,3.2078]
[1739080211404,6.8523542,2666.2,2665.4,3.2078]
[1739080211905,6.1023242,2666.2,2665.4,3.2078]
[1739080212309,3.2078,2666.0,2665.4,3.2078]
[1739080212607,1.1114,2665.9,2665.4,3.2078]
[1739080212800,5.84370458,2665.9,2665.4,3.2078]
[1739080217306,8.58726304,2665.9,2665.3,0.5971]
[1739080217501,0.75013,2665.8,2665.2,0.00562915]
[1739080217703,3.95797,2665.7,2665.2,0.00562915]
[1739080217903,0.75019,2665.6,2665.2,0.00562915]
[1739080218108,1.99343846,2665.6,2665.2,0.00562915]
[1739080218308,4.88381087,2665.5,2665.2,0.00562915]
[1739080218509,1.1476,2665.4,2665.2,0.00562915]
[1739080218801,4.23536592,2665.3,2665.2,0.00562915]
[1739080220206,4.23536592,2665.3,2665.2,0.57752915]
[1739080220604,4.23536592,2665.3,2665.2,0.00562915]
[1739080224511,4.23536592,2665.3,2665.2,0.60662915]
[1739080225113,0.5767,2665.4,2665.2,1.18292915]
[1739080225612,0.5767,2665.4,2665.3,0.5866]
[1739080226614,0.6017,2665.5,2665.3,0.5866]
[1739080226813,3.5584,2665.7,2665.4,3.2078]
[1739080227314,3.97118185,2665.6,2665.4,3.2078]
[1739080227711,0.5593,2665.9,2665.4,5.20123846]
[1739080227911,0.5644,2666.0,2665.7,3.2078]
[1739080228115,0.5644,2666.0,2665.8,0.5634]
[1739080228418,4.67595691,2666.3,2665.8,0.5634]
[1739080228619,5.28025691,2666.3,2666.0,3.2078]
[1739080228820,5.28025691,2666.3,2666.0,5.20123846]
[1739080229913,0.6043,2666.3,2666.0,5.20123846]
[1739080231517,0.6043,2666.3,2666.0,3.2078]
[1739080231715,4.07906901,2666.2,2665.8,1.1411]
[1739080231916,4.65416901,2666.2,2665.8,1.1411]
[1739080232718,4.65416901,2666.2,2665.8,0.5634]
[1739080233524,5.24446901,2666.2,2665.8,0.5634]
[1739080235620,3.2078,2665.9,2665.3,3.2078]
[1739080235827,3.2078,2665.9,2665.1,1.99343846]
[1739080236024,4.05536445,2665.8,2665.1,1.99343846]
[1739080236221,1.1444,2665.7,2665.1,1.99343846]
[1739080236417,1.6955,2665.7,2665.1,1.99343846]
[1739080236724,4.05536445,2665.6,2665.1,1.99343846]
[1739080237219,4.05536445,2665.6,2665.0,3.2078]
[1739080238931,7.26316445,2665.6,2665.0,3.2078]
[1739080239125,8.01335445,2665.6,2665.0,3.2078]
[1739080239328,7.26316445,2665.6,2665.0,3.2078]
[1739080241035,7.26316445,2665.6,2664.8,2.56403846]
[1739080242331,4.05536445,2665.6,2664.8,2.56403846]
[1739080242529,7.26316445,2665.6,2664.8,5.77183846]
[1739080243630,8.01334445,2665.6,2664.8,5.77183846]
[1739080244536,1.99343846,2665.4,2664.8,3.2078]
[1739080244729,3.2078,2665.3,2664.3,3.2078]
[1739080244924,3.2078,2665.0,2664.3,3.2078]
[1739080245127,0.5793,2664.9,2664.3,3.2078]
[1739080245334,4.67811116,2664.9,2664.3,3.2078]
[1739080245533,0.5793,2664.9,2664.3,3.2078]
[1739080245928,4.32894726,2664.8,2664.3,3.21342915]
[1739080246130,1.1936,2664.7,2664.3,3.21342915]
[1739080246637,4.32894726,2664.6,2664.3,3.21342915]
[1739080248439,4.32894726,2664.6,2664.3,0.00562915]
[1739080250539,0.75052,2664.4,2664.3,0.00562915]
[1739080250741,3.2078,2664.4,2664.3,0.00562915]
[1739080250939,7.31889461,2664.4,2664.3,0.00562915]
[1739080251737,7.87679461,2664.4,2664.3,0.00562915]
[1739080251938,8.62731461,2664.4,2664.3,0.00562915]
[1739080255538,5.41951461,2664.4,2664.3,0.00562915]
[1739080255744,8.62731461,2664.4,2664.3,0.00562915]
[1739080258543,5.41951461,2664.4,2664.3,0.00562915]
[1739080258743,8.62731461,2664.4,2664.3,0.00562915]
[1739080263544,0.75055,2664.3,2663.6,0.5774]
[1739080263743,0.75064,2664.0,2663.6,0.5774]
[1739080263950,0.5789,2663.9,2663.6,0.5774]
[1739080264240,5.68016461,2663.9,2663.6,0.5774]
[1739080264741,3.2078,2663.7,2663.6,0.5774]
[1739080264942,0.7507,2663.8,2663.6,0.5774]
[1739080265147,4.79437028,2663.7,2663.6,0.5774]
[1739080266343,5.54509028,2663.7,2663.5,0.00562915]
[1739080266652,8.75289028,2663.7,2663.5,0.00562915]
[1739080267350,0.5678,2663.6,2663.5,0.00562915]
[1739080267849,4.50301636,2663.6,2663.5,0.00562915]
[1739080268951,3.93521636,2663.6,2663.5,0.00562915]
[1739080269648,4.68595636,2663.6,2663.5,0.00562915]
[1739080271849,7.67995636,2663.6,2663.5,0.00562915]
[1739080276452,4.68595636,2663.6,2663.5,0.00562915]
[1739080279456,6.67939482,2663.6,2663.5,0.00562915]
[1739080286661,5.92865482,2663.6,2662.8,3.2078]
[1739080286967,3.2078,2662.9,2660.6,3.2078]
[1739080287172,3.2078,2662.0,2661.1,3.8111]
[1739080287473,1.99343846,2661.8,2661.2,0.5775]
[1739080287766,3.93521636,2661.9,2661.3,0.5611]
[1739080287957,0.00562915,2661.8,2661.3,0.5611]
[1739080288160,1.99906761,2661.8,2661.3,0.5611]
[1739080288354,3.2078,2661.6,2661.3,0.5611]
[1739080288662,2.74479846,2661.5,2661.2,0.58312915]
[1739080288859,3.2078,2661.3,2661.2,0.58312915]
[1739080289264,8.21273284,2661.3,2661.2,0.58312915]
[1739080289461,0.75143,2661.2,2660.7,0.565]
[1739080289772,1.99343846,2660.9,2660.7,0.565]
[1739080290161,4.36062365,2660.8,2660.7,0.565]
[1739080293764,4.36062365,2660.8,2659.9,3.2078]
[1739080293967,3.2078,2660.2,2660.0,0.5537]
[1739080294264,0.75173,2660.1,2660.0,0.5537]
[1739080294456,5.11410183,2660.1,2659.7,0.5831]
[1739080294865,3.98687692,2659.8,2659.5,3.2078]
[1739080295065,3.2078,2659.7,2658.9,1.7162]
[1739080295266,1.99343846,2659.0,2658.9,1.7162]
[1739080297067,1.99343846,2659.0,2658.9,0.5537]
[1739080297763,1.99343846,2659.0,2658.5,3.2078]
[1739080297960,1.99343846,2659.0,2658.3,0.5643]
[1739080298161,1.99343846,2658.7,2658.3,0.5643]
[1739080298762,3.98997806,2658.6,2658.3,0.5643]
[1739080301975,1.99343846,2658.4,2658.3,0.5643]
[1739080302367,5.94693999,2658.4,2658.3,0.5643]
[1739080306174,3.95350153,2658.4,2658.3,0.5643]
[1739080306574,4.04466597,2658.6,2658.3,0.5643]
[1739080306775,1.99343846,2658.7,2658.3,0.5643]
[1739080307275,4.22365951,2658.6,2658.3,0.5643]
[1739080308871,4.22365951,2658.6,2658.2,3.2078]
[1739080309069,4.22365951,2658.6,2657.4,0.5592]
[1739080309070,1.99343846,2658.3,2657.4,0.5592]
[1739080309277,1.99343846,2657.9,2657.4,0.5592]
[1739080309574,1.99343846,2657.6,2657.3,3.2078]
[1739080309765,3.77619723,2657.8,2657.4,0.5592]
[1739080309964,1.99343846,2657.9,2657.6,3.2078]
[1739080310369,1.99343846,2658.2,2657.6,3.2078]
[1739080310569,1.99343846,2658.5,2658.0,3.2078]
[1739080310873,4.29502538,2658.4,2658.1,1.7527]
[1739080311265,1.99343846,2658.8,2658.3,3.2078]
[1739080311773,4.05518445,2658.7,2658.3,3.2078]
[1739080313173,4.05518445,2658.7,2658.6,3.2078]
[1739080313370,0.00563984,2658.9,2658.6,3.2078]
[1739080313576,5.20123846,2659.7,2658.9,0.75206]
[1739080313778,1.99343846,2659.7,2659.2,3.2078]
[1739080313973,1.99343846,2659.7,2659.3,0.5648]
[1739080314373,1.99343846,2659.7,2659.5,3.2078]
[1739080318783,0.00563984,2659.9,2659.5,3.2078]
[1739080320083,4.0775379,2659.8,2659.5,3.2078]
[1739080320481,1.99343846,2659.7,2659.5,3.2078]
[1739080320677,1.99343846,2659.7,2659.3,0.00563984]
[1739080320979,1.99343846,2659.4,2659.3,0.00563984]
[1739080321479,5.97871105,2659.4,2659.3,0.00563984]
[1739080321686,1.99343846,2659.7,2659.3,0.00563984]
[1739080321984,1.99343846,2659.7,2659.4,3.2078]
[1739080322481,1.99343846,2659.7,2659.5,0.5994]
[1739080323179,1.15783984,2659.9,2659.5,0.5994]
[1739080323475,4.21972395,2659.8,2659.6,3.2078]
[1739080323875,0.00563984,2659.9,2659.6,3.2078]
[1739080327478,0.00563984,2659.9,2659.6,3.95967]
[1739080327986,0.00563984,2659.9,2659.6,11.20123846]
[1739080328387,0.00563984,2659.9,2659.7,0.75184]
[1739080328584,0.00563984,2659.9,2659.6,11.20123846]
[1739080329083,0.00563984,2659.9,2659.7,0.75184]
[1739080329389,0.00563984,2659.9,2659.6,11.20123846]
[1739080329589,0.00563984,2659.9,2659.6,3.2078]
[1739080331878,0.00563984,2659.9,2659.7,0.75184]
[1739080332082,0.00563984,2659.9,2659.6,11.20123846]
[1739080332282,0.00563984,2659.9,2659.6,5.20123846]
[1739080332493,0.00563984,2659.9,2659.6,3.2078]
[1739080333189,0.00563984,2659.9,2659.7,2.74525846]
[1739080333396,0.00563984,2659.9,2659.7,7.99343846]
[1739080333587,0.00563984,2659.9,2659.8,0.75182]
[1739080334088,1.99343846,2660.9,2659.9,0.75177]
[1739080334288,1.1596,2660.8,2660.3,3.2078]
[1739080334594,5.27867581,2660.8,2660.3,3.2078]
[1739080334795,1.1596,2660.8,2660.3,3.2078]
[1739080334984,4.11907581,2660.7,2660.3,3.2078]
[1739080335500,1.16523984,2660.8,2660.3,3.2078]
[1739080338096,1.16523984,2660.8,2660.6,3.2078]
[1739080338293,0.00563984,2660.8,2660.6,3.2078]
[1739080338499,0.00563984,2660.8,2660.7,0.5669]
[1739080340194,0.00563984,2660.8,2660.7,6.5669]
[1739080340501,1.1646,2661.3,2660.7,7.31846]
[1739080340697,1.1646,2661.3,2661.2,3.2078]
[1739080341000,0.5598,2661.3,2661.2,3.2078]
[1739080341791,4.81497086,2661.3,2661.0,0.00563984]
[1739080342098,0.5754,2661.2,2661.0,0.00563984]
[1739080343893,0.57138593,2661.2,2661.0,0.00563984]
[1739080344995,1.12548593,2661.2,2661.0,0.00563984]
[1739080345904,0.57138593,2661.2,2661.0,0.00563984]
[1739080347099,0.5598,2661.3,2661.0,0.00563984]
[1739080347296,0.5598,2661.3,2661.2,3.2078]
[1739080351598,0.00563984,2661.5,2661.2,3.2078]
[1739080355603,0.00563984,2661.5,2661.3,0.592]
[1739080366315,0.00563984,2661.5,2661.2,3.2078]
[1739080366519,0.59333984,2661.5,2661.2,3.2078]
[1739080367010,4.32691185,2661.4,2661.2,3.2078]
[1739080367405,0.5974,2661.3,2661.2,3.2078]
[1739080367813,0.5974,2661.3,2661.2,2.2968]
[1739080372418,4.61790265,2661.3,2661.2,2.2968]
[1739080378116,4.61790265,2661.3,2661.0,0.00563984]
[1739080378314,4.61790265,2661.3,2661.0,0.56273984]
[1739080378513,4.61790265,2661.3,2661.0,1.14203984]
[1739080380528,0.00563984,2661.5,2661.2,3.2078]
[1739080389332,0.00563984,2661.5,2661.2,5.20123846]
[1739080390727,0.00563984,2661.5,2661.2,11.42823846]
[1739080391429,0.00563984,2661.5,2661.2,11.7239173]
[1739080391931,0.00563984,2661.5,2661.2,5.20123846]
[1739080392732,0.00563984,2661.5,2661.2,3.2078]
[1739080398536,4.08886117,2661.4,2661.2,3.2078]
[1739080398840,1.1692,2661.3,2661.2,3.2078]
[1739080401539,1.1692,2661.3,2661.0,0.56273984]
[1739080409851,0.00563984,2661.5,2661.0,0.56273984]
[1739080410354,4.07091344,2661.3,2661.1,3.2078]
[1739080410556,4.07091344,2661.4,2661.1,3.2078]
[1739080410847,0.00563984,2661.5,2661.1,3.2078]
[1739080411046,4.28934504,2661.4,2661.1,3.2078]
[1739080413450,0.00563984,2661.5,2661.1,3.2078]
[1739080415352,4.14233491,2661.4,2661.1,3.2078]
[1739080416652,0.00563984,2661.5,2661.1,3.2078]
[1739080419760,0.00563984,2661.5,2661.4,3.2078]
[1739080422655,0.00563984,2661.5,2661.3,1.165]
[1739080422862,0.00563984,2661.5,2661.1,3.2078]
[1739080422863,0.00563984,2661.5,2661.1,3.8026]
[1739080423059,3.97370266,2661.5,2661.1,3.8026]
[1739080423255,3.97370266,2661.5,2661.1,0.5948]
[1739080424467,5.96714112,2661.5,2661.0,1.12063984]
[1739080427359,5.96714112,2661.5,2661.0,0.56273984]
[1739080427565,5.96714112,2661.5,2661.0,0.00563984]
[1739080427766,3.2078,2661.4,2661.0,0.00563984]
[1739080428176,1.99343846,2661.2,2661.0,0.00563984]
[1739080428475,1.1566,2661.1,2661.0,0.00563984]
[1739080428682,5.28463663,2661.1,2661.0,0.00563984]
[1739080430979,8.49243663,2661.1,2661.0,0.00563984]
[1739080431379,8.49243663,2661.1,2660.3,3.2078]
[1739080431581,1.99343846,2660.8,2660.3,3.2078]
[1739080431974,4.00307906,2660.7,2660.3,3.2078]
[1739080432182,0.5713,2660.6,2660.3,3.2078]
[1739080432387,1.1376,2660.6,2660.3,3.2078]
[1739080433482,1.1376,2660.6,2660.2,0.00563984]
[1739080434481,0.603,2660.5,2660.2,0.00563984]
[1739080435583,0.603,2660.5,2660.2,3.80873984]
[1739080437791,5.20123846,2661.1,2660.2,3.80873984]
[1739080437991,1.1565,2661.0,2660.2,3.80873984]
[1739080438192,4.21333566,2660.7,2660.5,3.2078]
[1739080438396,5.36983566,2661.0,2660.6,1.7591]
[1739080438590,1.1565,2661.0,2660.6,1.7591]
[1739080438785,4.02296778,2660.9,2660.6,1.7591]
[1739080439787,4.02296778,2660.9,2660.5,3.2078]
[1739080439986,4.02296778,2660.9,2660.3,0.6066]
[1739080441392,1.99343846,2660.8,2660.3,0.6066]
[1739080441582,0.5933,2660.7,2660.3,0.6066]
[1739080441785,4.6142527,2660.7,2660.3,0.6066]
[1739080442082,0.6018,2660.6,2660.3,0.6066]
[1739080443893,0.6007,2660.5,2660.3,0.6066]
[1739080445390,0.6007,2660.5,2660.2,3.21343984]
[1739080445697,4.28937921,2660.4,2660.2,3.21343984]
[1739080448696,4.3417401,2660.5,2660.2,3.21343984]
[1739080448893,4.3417401,2660.3,2660.2,3.21343984]
[1739080449195,4.3417401,2660.4,2660.2,3.21343984]
[1739080449403,4.3417401,2660.4,2660.3,1.1726]
[1739080449698,0.6018,2660.6,2660.3,1.1726]
[1739080449887,0.6018,2660.6,2660.4,0.5754]
[1739080450091,4.19678939,2660.5,2660.4,0.5754]
[1739080450898,1.1623,2661.0,2660.4,0.5754]
[1739080451099,0.6035,2660.9,2660.4,0.5754]
[1739080451292,4.5230003,2660.9,2660.4,0.5754]
[1739080454000,1.99343846,2660.8,2660.3,0.5759]
[1739080454199,1.99343846,2660.8,2660.2,3.21343984]